bitfinex/quotes_SOLUSD_20260211
["timestamp","ask_amount","ask_price","bid_price","bid_amount"]
[1770829322867,0.48077616,78.445,78.392,0.47805648]
[1770829323164,0.48077616,78.443,78.401,0.47805648]
[1770829323467,12.74762256,78.446,78.401,0.47805648]
[1770829323665,0.48077616,78.445,78.401,0.47805648]
[1770829323968,12.74762256,78.446,78.401,0.47805648]
[1770829324160,0.48077616,78.46,78.391,44.64798254]
[1770829324161,12.74669198,78.452,78.42,19.26168677]
[1770829324361,12.74669198,78.452,78.42,0.47805648]
[1770829324563,0.48077616,78.458,78.412,12.75315002]
[1770829325260,0.35323616,78.458,78.412,12.75315002]
[1770829325876,40.14,78.457,78.412,12.75315002]
[1770829326565,44.61099214,78.456,78.401,0.47805648]
[1770829326747,40.14,78.455,78.401,0.47805648]
[1770829326942,40.14,78.455,78.41,18.78363029]
[1770829327153,40.16,78.454,78.411,0.47805648]
[1770829327368,0.48077616,78.453,78.4,18.78363029]
[1770829327552,0.48077616,78.453,78.401,0.47805648]
[1770829328549,0.48077616,78.453,78.4,18.78363029]
[1770829328550,0.48077616,78.45,78.403,0.47805648]
[1770829329860,40.18,78.452,78.411,0.47805648]
[1770829330066,0.48077616,78.45,78.411,0.47805648]
[1770829330264,0.48077616,78.45,78.402,12.75477666]
[1770829330470,0.48077616,78.448,78.402,12.75477666]
[1770829331166,0.48077616,78.446,78.403,0.47805648]
[1770829332673,12.74746006,78.447,78.403,0.47805648]
[1770829332850,0.48077616,78.474,78.411,0.47805648]
[1770829333055,13.22190196,78.486,78.45,11.16748934]
[1770829333368,12.7411258,78.486,78.451,0.47805648]
[1770829333570,0.48077616,78.485,78.442,45.0970106]
[1770829333753,0.48077616,78.485,78.443,0.47805648]
[1770829333954,40.18,78.487,78.451,0.47805648]
[1770829334158,52.92105596,78.487,78.451,0.47805648]
[1770829334362,0.48077616,78.486,78.451,0.47805648]
[1770829335054,0.48077616,78.486,78.44,11.16748934]
[1770829335055,0.48077616,78.486,78.436,47.52]
[1770829335262,0.48077616,78.482,78.437,12.74908525]
[1770829335459,0.48077616,78.482,78.426,12.75087343]
[1770829335652,108.30370907,78.483,78.405,0.47805648]
[1770829335653,0.48077616,78.474,78.405,0.47805648]
[1770829335853,0.48077616,78.468,78.411,0.47805648]
[1770829336656,0.48077616,78.468,78.386,47.5]
[1770829336657,0.48077616,78.462,78.398,13.23348391]
[1770829336965,273.94467589,78.483,78.421,0.47805648]
[1770829336966,0.48077616,78.469,78.421,0.47805648]
[1770829337166,0.48077616,78.467,78.413,0.47805648]
[1770829338179,40.68077616,78.466,78.421,0.47805648]
[1770829338382,0.48077616,78.465,78.421,0.47805648]
[1770829339173,0.48077616,78.465,78.422,12.7515238]
[1770829339174,12.7446982,78.464,78.422,12.7515238]
[1770829339475,0.48077616,78.463,78.423,0.47805648]
[1770829339970,12.7446982,78.464,78.423,0.47805648]
[1770829340986,0.46527166,78.463,78.423,0.47805648]
[1770829341362,12.74502306,78.462,78.425,0.49584658]
[1770829341571,40.2,78.466,78.431,0.49584658]
[1770829341770,62.97394707,78.507,78.424,44.62919514]
[1770829341771,0.46527166,78.505,78.451,0.49584658]
[1770829341973,0.46527166,78.503,78.451,0.49584658]
[1770829342286,0.46527166,78.501,78.451,0.49584658]
[1770829342983,40.2,78.5,78.461,0.49584658]
[1770829343361,40.2,78.5,78.463,0.49584658]
[1770829343561,52.93896128,78.5,78.463,0.49584658]
[1770829343774,0.46527166,78.499,78.441,0.49584658]
[1770829344171,0.46527166,78.497,78.441,0.49584658]
[1770829344377,0.46527166,78.497,78.43,0.49584658]
[1770829344594,0.46527166,78.489,78.411,0.49584658]
[1770829344887,0.46527166,78.487,78.411,0.49584658]
[1770829345265,0.46527166,78.481,78.421,0.49584658]
[1770829345472,0.46527166,78.479,78.422,12.7515238]
[1770829345768,0.46527166,78.471,78.411,0.49584658]
[1770829345983,0.46527166,78.465,78.401,0.49584658]
[1770829346170,0.46527166,78.465,78.41,11.1646]
[1770829346365,12.74083178,78.488,78.451,0.49584658]
[1770829346565,12.74083178,78.488,78.384,47.34]
[1770829346566,5.36086188,78.486,78.366,0.50056499]
[1770829346779,5.36086188,78.486,78.348,0.50056499]
[1770829346970,5.36086188,78.484,78.35,0.50056499]
[1770829347286,97.7,78.487,78.332,0.50056499]
[1770829347287,5.36086188,78.48,78.332,0.50056499]
[1770829347487,5.36086188,78.476,78.332,0.50056499]
[1770829347691,5.36086188,78.462,78.332,0.50056499]
[1770829347984,38.31,78.457,78.332,0.50056499]
[1770829348188,5.36086188,78.452,78.332,0.50056499]
[1770829348391,38.31,78.453,78.332,0.50056499]
[1770829348577,5.36086188,78.444,78.332,0.50056499]
[1770829348889,0.47764342,78.439,78.261,51.11058846]
[1770829349080,38.78764342,78.419,78.262,51.11026917]
[1770829349384,38.78764342,78.396,78.291,12.77272263]
[1770829349569,5.36086188,78.381,78.286,12.77362517]
[1770829349887,5.36086188,78.381,78.257,47.72]
[1770829349888,5.36086188,78.357,78.261,31.94403586]
[1770829350183,17.82,78.357,78.28,11.1646]
[1770829350687,17.82,78.357,78.261,31.94403586]
[1770829350688,0.47764342,78.356,78.261,31.94403586]
[1770829350884,17.82,78.357,78.261,31.94403586]
[1770829350885,0.47764342,78.354,78.263,0.49740233]
[1770829351183,0.47764342,78.348,78.263,0.49740233]
[1770829351385,0.47764342,78.346,78.265,0.49740233]
[1770829352781,44.67305703,78.347,78.27,11.1646]
[1770829353079,0.47764342,78.346,78.271,0.49740233]
[1770829353266,0.47764342,78.346,78.264,44.72043339]
[1770829353267,0.47764342,78.346,78.273,0.49740233]
[1770829353465,51.05003217,78.355,78.275,0.49740233]
[1770829353466,0.47764342,78.344,78.275,0.49740233]
[1770829353671,95.73042311,78.345,78.275,0.49740233]
[1770829353672,5.36086188,78.339,78.275,0.49740233]
[1770829353867,5.36086188,78.335,78.275,0.49740233]
[1770829354181,0.47764342,78.328,78.275,0.49740233]
[1770829355493,0.47764342,78.326,78.275,0.49740233]
[1770829355999,0.47764342,78.326,78.24,11.1646]
[1770829356000,0.47764342,78.318,78.258,0.49740233]
[1770829356179,0.47764342,78.326,78.259,0.49740233]
[1770829356379,0.47764342,78.319,78.259,0.49740233]
[1770829356586,0.47764342,78.313,78.21,0.49740233]
[1770829356783,5.36086188,78.298,78.211,0.49740233]
[1770829356983,0.66617746,78.226,78.211,0.49740233]
[1770829357302,0.47764342,78.256,78.211,0.49740233]
[1770829357507,17.84,78.268,78.155,0.49740233]
[1770829357508,0.47764342,78.254,78.155,0.49740233]
[1770829357674,203.4312727,78.255,78.156,0.49740233]
[1770829357675,0.47764342,78.238,78.156,0.49740233]
[1770829357872,0.47764342,78.236,78.161,0.49740233]
[1770829358489,0.47764342,78.236,78.163,0.49740233]
[1770829358889,313.07903646,78.255,78.101,0.49740233]
[1770829358890,0.47764342,78.234,78.101,0.49740233]
[1770829359197,0.47764342,78.22,78.101,0.49740233]
[1770829359405,0.47764342,78.218,78.15,11.1646]
[1770829359696,12.78494444,78.217,78.161,0.49740233]
[1770829359897,0.47764342,78.216,78.161,0.49740233]
[1770829360300,41.04,78.215,78.161,0.49740233]
[1770829360599,0.47764342,78.214,78.161,0.49740233]
[1770829361494,12.78265649,78.231,78.163,0.49740233]
[1770829361687,12.78069603,78.243,78.171,0.49740233]
[1770829361893,12.78069603,78.243,78.109,0.49740233]
[1770829361894,0.47764342,78.242,78.109,0.49740233]
[1770829362194,0.47764342,78.234,78.109,0.49740233]
[1770829362381,5.36086188,78.237,78.109,0.49740233]
[1770829362382,0.47764342,78.23,78.109,0.49740233]
[1770829362578,6.43803093,78.229,78.109,0.49740233]
[1770829362791,11.45022072,78.228,78.109,0.49740233]
[1770829362993,0.47764342,78.226,78.121,0.49740233]
[1770829363181,13.46737223,78.227,78.131,0.49740233]
[1770829363182,5.36086188,78.221,78.131,0.49740233]
[1770829363497,0.47764342,78.208,78.133,0.49740233]
[1770829363684,0.47764342,78.206,78.135,0.49740233]
[1770829364378,13.2634649,78.212,78.141,0.49740233]
[1770829365701,12.78094004,78.242,78.181,0.49740233]
[1770829366212,19.89614033,78.274,78.164,262.26907526]
[1770829366213,0.47764342,78.262,78.19,18.9370392]
[1770829366378,0.47764342,78.262,78.191,0.49740233]
[1770829366580,41.52,78.276,78.201,0.49740233]
[1770829366887,12.77579752,78.273,78.211,0.49740233]
[1770829367087,0.47764342,78.274,78.211,0.49740233]
[1770829367692,12.77579752,78.273,78.213,0.49740233]
[1770829367883,0.47764342,78.284,78.213,0.49740233]
[1770829368084,0.47764342,78.3,78.221,0.49740233]
[1770829368297,0.47764342,78.299,78.221,0.49740233]
[1770829368803,5.36086188,78.296,78.221,0.49740233]
[1770829369001,5.36086188,78.292,78.165,0.5932292]
[1770829369300,5.36086188,78.29,78.165,0.5932292]
[1770829369516,5.36086188,78.288,78.165,0.5932292]
[1770829369809,5.36086188,78.286,78.167,0.5932292]
[1770829369978,5.36086188,78.286,78.17,18.9370392]
[1770829370183,64.2991674,78.285,78.191,0.5932292]
[1770829370384,0.02128611,78.283,78.193,0.5932292]
[1770829370591,0.02128611,78.28,78.193,0.5932292]
[1770829370793,0.02128611,78.277,78.193,0.5932292]
[1770829371703,0.02128611,78.277,78.201,0.5932292]
[1770829372106,0.02821911,78.276,78.201,0.5932292]
[1770829372316,0.02821911,78.274,78.19,0.5932292]
[1770829372610,0.03507248,78.271,78.163,0.5932292]
[1770829372818,0.03507248,78.268,78.163,0.5932292]
[1770829373218,376.86195352,78.278,78.163,0.5932292]
[1770829373219,0.03507248,78.265,78.163,0.5932292]
[1770829373419,13.43217349,78.264,78.163,0.5932292]
[1770829373586,0.04184713,78.262,78.163,0.5932292]
[1770829373792,0.04184713,78.26,78.165,0.5932292]
[1770829374112,0.04184713,78.257,78.165,0.5932292]
[1770829374315,0.04184713,78.254,78.165,0.5932292]
[1770829374617,0.04837849,78.251,78.165,0.5932292]
[1770829375318,0.04837849,78.249,78.165,0.5932292]
[1770829375813,0.04837849,78.249,78.167,0.5932292]
[1770829376216,12.77955271,78.25,78.191,0.5932292]
[1770829376530,12.77955271,78.25,78.193,0.5932292]
[1770829376693,44.72843449,78.25,78.193,0.5932292]
[1770829377412,44.72843449,78.25,78.195,0.5932292]
[1770829377794,31.94888178,78.25,78.197,0.5932292]
[1770829378114,0.06752591,78.249,78.197,0.5932292]
[1770829379113,44.72443358,78.257,78.197,0.5932292]
[1770829379690,12.77840959,78.257,78.201,0.5932292]
[1770829379912,12.77840959,78.257,78.203,0.5932292]
[1770829380293,0.07992712,78.256,78.203,0.5932292]
[1770829380488,6.68039066,78.283,78.203,0.5932292]
[1770829380795,0.0860211,78.278,78.205,0.5932292]
[1770829381201,0.0860211,78.277,78.19,0.5932292]
[1770829381601,41.98,78.276,78.191,0.5932292]
[1770829381802,44.71414882,78.275,78.203,0.5932292]
[1770829382000,12.77090277,78.303,78.241,0.5932292]
[1770829382202,6.68009755,78.283,78.241,0.5932292]
[1770829382416,42.06,78.302,78.241,0.5932292]
[1770829382913,42.15799987,78.302,78.241,0.5932292]
[1770829383300,42.13799987,78.302,78.241,0.5932292]
[1770829383502,42.04,78.302,78.241,0.5932292]
[1770829383897,42.04,78.319,78.243,0.5932292]
[1770829384115,42.04,78.319,78.251,0.5932292]
[1770829384310,0.10388627,78.318,78.251,0.5932292]
[1770829384609,42.04,78.331,78.261,0.5932292]
[1770829385116,0.10970505,78.33,78.261,0.5932292]
[1770829385605,44.7924575,78.33,78.263,0.5932292]
[1770829386110,0.115457,78.329,78.263,0.5932292]
[1770829386818,44.68275245,78.33,78.263,0.5932292]
[1770829387014,12.7665007,78.33,78.263,0.5932292]
[1770829387522,31.91220628,78.34,78.265,0.5932292]
[1770829387712,12.76405641,78.345,78.271,0.5932292]
[1770829388025,44.67419745,78.345,78.281,0.5932292]
[1770829388517,44.67419745,78.345,78.283,0.5932292]
[1770829388717,12.76405641,78.345,78.291,0.5932292]
[1770829388922,31.90260152,78.364,78.291,0.5932292]
[1770829389113,31.89439468,78.384,78.311,0.5932292]
[1770829389298,12.75721739,78.387,78.331,0.5932292]
[1770829389723,0.13231948,78.4,78.333,0.5932292]
[1770829390308,0.13231948,78.4,78.335,0.5932292]
[1770829390506,12.75412595,78.406,78.341,0.5932292]
[1770829390902,0.1432408,78.405,78.341,0.5932292]
[1770829391420,0.1432408,78.405,78.343,0.5932292]
[1770829391628,0.1432408,78.405,78.344,44.67476769]
[1770829391798,0.1432408,78.405,78.345,0.5932292]
[1770829392226,12.75407214,78.407,78.345,0.5932292]
[1770829392902,12.75407214,78.407,78.346,48.76]
[1770829393108,12.75407214,78.407,78.347,0.5932292]
[1770829393410,12.75407214,78.407,78.349,0.5932292]
[1770829393612,0.2,78.41,78.35,95.72431396]
[1770829393814,17.90714033,78.437,78.35,95.72431396]
[1770829393815,12.74961868,78.434,78.362,0.5932292]
[1770829394014,50.96469397,78.486,78.35,248.88321631]
[1770829394015,0.15915686,78.495,78.421,0.5932292]
[1770829394218,12.74047649,78.49,78.431,0.5932292]
[1770829394422,44.59166772,78.49,78.433,0.5932292]
[1770829394619,12.73973232,78.495,78.441,0.5932292]
[1770829394825,0.16434081,78.507,78.441,0.5932292]
[1770829394826,12.74047649,78.49,78.441,0.5932292]
[1770829395009,17.04870086,78.491,78.441,0.5932292]
[1770829395414,4.30831206,78.491,78.443,0.5932292]
[1770829395631,4.30831206,78.491,78.46,18.9370392]
[1770829395814,4.30831206,78.491,78.462,0.5932292]
[1770829396020,12.74047649,78.49,78.45,0.5932292]
[1770829396339,17.04866671,78.491,78.452,0.5932292]
[1770829396530,0.17453076,78.49,78.452,0.5932292]
[1770829397438,0.17453076,78.49,78.433,0.5932292]
[1770829397744,0.17453076,78.49,78.437,0.5932292]
[1770829398033,0.17453076,78.49,78.439,0.5932292]
[1770829398237,4.30831206,78.491,78.451,0.5932292]
[1770829398539,2.9473229,78.491,78.471,0.55720235]
[1770829398736,2.26682832,78.491,78.471,0.55720235]
[1770829398939,0.68547318,78.49,78.452,48.64]
[1770829399143,1.75090729,78.491,78.452,48.64]
[1770829399432,1.75090729,78.491,78.45,18.9370392]
[1770829399617,1.75090729,78.491,78.46,18.9370392]
[1770829399814,1.75090729,78.491,78.461,12.7451855]
[1770829400034,1.75090729,78.491,78.461,44.60814926]
[1770829400222,0.68547318,78.49,78.45,48.62]
[1770829400618,0.68547318,78.49,78.421,44.63090243]
[1770829400836,0.68547318,78.488,78.421,12.75168641]
[1770829401339,41.76,78.489,78.414,48.62]
[1770829401340,5.36086188,78.483,78.414,48.62]
[1770829401660,5.36086188,78.463,78.388,12.75705465]
[1770829401839,0.68547318,78.456,78.384,48.62]
[1770829402138,0.68547318,78.454,78.39,18.9370392]
[1770829402520,0.68547318,78.454,78.377,31.89671631]
[1770829402721,0.68547318,78.454,78.36,18.9370392]
[1770829402941,0.68547318,78.454,78.39,18.82714665]
[1770829403142,0.68547318,78.452,78.39,18.82714665]
[1770829403522,0.68547318,78.452,78.385,48.74]
[1770829403722,41.9,78.453,78.386,12.75738014]
[1770829403723,95.60107582,78.451,78.386,12.75738014]
[1770829403921,0.68547318,78.448,78.376,12.75885582]
[1770829404323,0.68547318,78.436,78.343,12.76438226]
[1770829404524,0.68547318,78.434,78.361,0.02393941]
[1770829404724,0.68547318,78.432,78.361,0.02393941]
[1770829404925,0.68547318,78.428,78.343,44.67533792]
[1770829405348,0.68547318,78.428,78.351,0.02393941]
[1770829405840,0.68547318,78.439,78.38,18.82714665]
[1770829406047,0.68547318,78.439,78.39,18.82714665]
[1770829406232,0.68547318,78.439,78.381,48.76]
[1770829406544,0.68547318,78.439,78.39,18.82714665]
[1770829406748,0.68547318,78.439,78.381,48.76]
[1770829407636,13.43439589,78.438,78.39,18.82714665]
[1770829408048,0.68547318,78.437,78.391,48.8]
[1770829408864,0.68547318,78.447,78.382,44.65310913]
[1770829409039,0.68547318,78.447,78.39,18.82714665]
[1770829409240,0.68547318,78.447,78.383,48.76]
[1770829409558,0.68547318,78.445,78.39,18.82714665]
[1770829409858,0.68547318,78.445,78.384,44.65196978]
[1770829409859,0.68547318,78.445,78.4,18.82714665]
[1770829410161,0.68547318,78.445,78.384,93.37196978]
[1770829410857,0.68547318,78.445,78.384,61.47770565]
[1770829411065,0.68547318,78.445,78.384,12.75770565]
[1770829411360,0.68547318,78.443,78.39,18.82714665]
[1770829411558,0.68547318,78.441,78.391,12.75656644]
[1770829411861,0.68547318,78.441,78.4,18.82714665]
[1770829413658,0.68547318,78.44,78.4,18.82714665]
[1770829413852,0.68547318,78.451,78.4,18.82714665]
[1770829414748,0.68547318,78.451,78.391,93.34798254]
[1770829415343,0.68547318,78.449,78.391,93.34798254]
[1770829415864,0.68547318,78.447,78.391,93.34798254]
[1770829416257,0.68547318,78.447,78.391,61.45656644]
[1770829416957,0.68547318,78.447,78.371,12.75982187]
[1770829417158,0.68547318,78.447,78.32,51.07234736]
[1770829417159,0.68547318,78.431,78.337,12.76535991]
[1770829417357,0.68547318,78.417,78.338,48.6]
[1770829417740,44.6337482,78.416,78.34,18.82714665]
[1770829417937,0.68547318,78.415,78.341,48.6]
[1770829418139,0.68547318,78.411,78.339,12.76503401]
[1770829418342,5.36086188,78.402,78.326,12.76715266]
[1770829418545,0.68547318,78.397,78.326,12.76715266]
[1770829418743,5.36086188,78.386,78.311,12.76959814]
[1770829418983,0.68547318,78.377,78.311,12.76959814]
[1770829419158,0.68547318,78.377,78.32,18.82714665]
[1770829419359,0.68547318,78.377,78.311,44.69359349]
[1770829420058,17.84,78.383,78.311,44.69359349]
[1770829420059,0.68547318,78.375,78.311,31.92399535]
[1770829420744,0.68547318,78.375,78.312,48.6]
[1770829420949,0.68547318,78.375,78.311,31.92399535]
[1770829420950,12.75900785,78.376,78.33,18.82714665]
[1770829421151,12.75900785,78.376,78.331,48.6]
[1770829421352,13.44360074,78.382,78.331,48.6]
[1770829421568,0.68547318,78.381,78.331,48.6]
[1770829422170,41.74,78.386,78.313,48.58]
[1770829422171,0.68547318,78.379,78.313,48.58]
[1770829422855,0.68547318,78.377,78.314,48.6]
[1770829423052,0.68547318,78.377,78.312,44.69302278]
[1770829423264,0.68547318,78.377,78.32,18.82714665]
[1770829423568,0.68547318,78.377,78.312,44.69302278]
[1770829423960,41.76,78.381,78.312,44.69302278]
[1770829423961,0.68547318,78.375,78.312,44.69302278]
[1770829425049,0.68547318,78.375,78.312,12.76943508]
[1770829425249,0.68547318,78.375,78.31,0.1]
[1770829425460,0.68547318,78.375,78.248,51.11936429]
[1770829425461,5.36086188,78.364,78.27,18.82714665]
[1770829425655,0.66160932,78.357,78.28,18.82714665]
[1770829425861,0.66160932,78.357,78.29,18.82714665]
[1770829426056,0.66160932,78.355,78.291,12.77286022]
[1770829426373,0.66160932,78.355,78.286,12.77357194]
[1770829426549,0.66160932,78.355,78.282,48.54]
[1770829426550,0.66160932,78.347,78.282,48.54]
[1770829426753,0.66160932,78.345,78.278,12.77497003]
[1770829427046,0.66160932,78.345,78.29,11.20356922]
[1770829427370,0.66160932,78.335,78.27,11.20356922]
[1770829427566,0.66160932,78.335,78.28,11.20356922]
[1770829427965,0.66160932,78.335,78.27,11.20356922]
[1770829428268,0.66160932,78.333,78.271,12.77612397]
[1770829428572,0.66160932,78.331,78.28,11.20356922]
[1770829428770,0.66160932,78.327,78.26,11.20356922]
[1770829428970,0.66160932,78.327,78.27,11.20356922]
[1770829429179,0.66160932,78.327,78.3,11.20356922]
[1770829429347,0.66160932,78.338,78.3,11.20356922]
[1770829429667,0.66160932,78.372,78.32,11.20356922]
[1770829430171,0.66160932,78.37,78.321,44.68788702]
[1770829430471,0.66160932,78.37,78.321,12.76796772]
[1770829430867,12.75982187,78.371,78.33,11.20356922]
[1770829431166,0.63547318,78.378,78.321,44.68788702]
[1770829431869,0.63547318,78.378,78.321,12.76796772]
[1770829432173,0.63547318,78.376,78.311,44.69359349]
[1770829432352,0.63547318,78.376,78.312,48.52]
[1770829432552,0.63547318,78.374,78.311,44.69359349]
[1770829432866,0.63547318,78.374,78.311,12.76959814]
[1770829433252,0.63547318,78.374,78.311,44.69359349]
[1770829433676,0.63547318,78.374,78.32,11.20356922]
[1770829434263,0.63547318,78.372,78.321,44.68788702]
[1770829434463,0.63547318,78.372,78.33,11.20356922]
[1770829434856,6.6707134,78.393,78.34,11.20356922]
[1770829435057,0.63547318,78.391,78.34,11.20356922]
[1770829435373,0.63547318,78.401,78.341,48.42]
[1770829435568,0.63547318,78.401,78.35,11.20356922]
[1770829435880,0.63547318,78.401,78.348,48.4]
[1770829436581,12.75201162,78.419,78.35,11.20356922]
[1770829436753,0.63547318,78.418,78.36,11.20356922]
[1770829437358,0.63547318,78.418,78.361,48.38]
[1770829437657,0.63547318,78.418,78.362,48.36]
[1770829438059,41.76,78.44,78.37,11.20356922]
[1770829438060,12.75006606,78.431,78.37,11.20356922]
[1770829438259,0.63547318,78.43,78.37,11.20356922]
[1770829438476,12.75038569,78.429,78.371,44.65937655]
[1770829438860,0.63547318,78.43,78.38,11.20356922]
[1770829439283,0.63547318,78.477,78.39,11.20356922]
[1770829439479,0.63547318,78.462,78.4,11.20356922]
[1770829439675,0.63547318,78.462,78.401,48.32]
[1770829439977,0.63547318,78.462,78.38,11.20356922]
[1770829440280,0.63547318,78.462,78.381,48.3]
[1770829440687,0.63547318,78.46,78.382,44.65310913]
[1770829441182,0.63547318,78.452,78.371,31.89920251]
[1770829441381,0.63547318,78.446,78.372,12.75965906]
[1770829441763,0.63547318,78.446,78.38,11.20356922]
[1770829441964,0.63547318,78.446,78.372,44.65880671]
[1770829442169,0.63547318,78.446,78.38,11.20356922]
[1770829442389,0.63547318,78.446,78.4,11.20356922]
[1770829442688,0.63547318,78.446,78.402,44.64171831]
[1770829442860,0.63547318,78.446,78.403,48.32]
[1770829443061,0.63547318,78.459,78.402,44.64171831]
[1770829443386,0.63547318,78.459,78.41,11.20356922]
[1770829443584,0.63547318,78.459,78.403,48.32]
[1770829444480,0.63547318,78.459,78.404,48.32]
[1770829444678,0.63547318,78.457,78.405,12.75428862]
[1770829444984,0.63547318,78.457,78.405,44.64001019]
[1770829445190,0.63547318,78.457,78.406,48.32]
[1770829445490,0.63547318,78.457,78.41,11.20356922]
[1770829445995,0.63547318,78.457,78.42,11.20356922]
[1770829446369,0.63547318,78.457,78.421,48.3]
[1770829446570,0.63547318,78.481,78.43,11.20356922]
[1770829446783,0.63547318,78.481,78.431,48.28]
[1770829446984,0.63547318,78.479,78.432,44.624643]
[1770829447307,6.66149523,78.503,78.432,44.624643]
[1770829447308,0.63547318,78.5,78.46,11.20356922]
[1770829447469,0.63547318,78.524,78.48,11.20356922]
[1770829447780,51.1102722,78.57,78.45,11.20356922]
[1770829447781,0.63547318,78.557,78.481,48.28]
[1770829447988,0.63547318,78.557,78.52,11.20356922]
[1770829448168,0.63547318,78.557,78.51,11.20356922]
[1770829448374,0.63547318,78.548,78.511,17.84]
[1770829448574,0.63547318,78.548,78.492,26.6]
[1770829449089,0.63547318,78.546,78.493,12.73998955]
[1770829449394,0.63547318,78.556,78.51,11.20356922]
[1770829449574,0.63547318,78.548,78.5,11.20356922]
[1770829449971,0.63547318,78.548,78.493,44.58996343]
[1770829450171,0.63547318,78.548,78.494,48.26]
[1770829450365,0.63547318,78.548,78.5,11.20356922]
[1770829450579,0.63547318,78.548,78.51,11.20356922]
[1770829450893,0.63547318,78.548,78.5,11.20356922]
[1770829451078,0.63547318,78.546,78.499,48.22]
[1770829451267,0.63547318,78.558,78.51,11.20356922]
[1770829451475,12.73011886,78.554,78.51,11.20356922]
[1770829451691,12.73011886,78.554,78.494,95.54870434]
[1770829451692,0.63547318,78.549,78.494,44.58939535]
[1770829451985,0.63547318,78.549,78.5,11.20356922]
[1770829452170,0.63547318,78.549,78.51,11.20356922]
[1770829452582,0.63547318,78.549,78.511,48.22]
[1770829452988,0.63547318,78.549,78.512,12.73690646]
[1770829453193,12.7310689,78.548,78.512,12.73690646]
[1770829453398,12.7310689,78.548,78.49,11.20356922]
[1770829453399,0.63547318,78.547,78.49,11.20356922]
[1770829453592,5.36086188,78.543,78.466,12.74437335]
[1770829453776,41.58,78.547,78.456,12.74599775]
[1770829453777,0.63547318,78.536,78.456,12.74599775]
[1770829453977,0.63547318,78.536,78.46,11.20356922]
[1770829454176,0.63547318,78.536,78.47,11.20356922]
[1770829454578,0.63547318,78.536,78.46,11.20356922]
[1770829454781,0.63547318,78.536,78.49,11.20356922]
[1770829454981,0.63547318,78.534,78.471,44.60246459]
[1770829455173,0.63547318,78.534,78.473,48.24]
[1770829455695,0.63547318,78.534,78.48,11.20356922]
[1770829455897,12.73090682,78.549,78.5,11.20356922]
[1770829456199,0.63547318,78.548,78.5,11.20356922]
[1770829456398,0.2,78.55,78.51,11.20356922]
[1770829456576,0.2,78.55,78.511,48.2]
[1770829456777,0.2,78.55,78.52,11.20356922]
[1770829456978,0.2,78.55,78.511,48.2]
[1770829456979,12.93075234,78.55,78.501,12.73869122]
[1770829457178,0.63547318,78.549,78.509,48.2]
[1770829457676,0.63547318,78.549,78.49,11.20356922]
[1770829457677,0.63547318,78.549,78.498,48.18]
[1770829457904,0.63547318,78.549,78.499,12.73901578]
[1770829458202,0.63547318,78.549,78.48,12.74209989]
[1770829458392,0.63547318,78.549,78.484,48.18]
[1770829458582,0.63547318,78.549,78.49,11.20356922]
[1770829459106,12.7310689,78.548,78.491,44.59109961]
[1770829459410,0.63547318,78.547,78.5,11.20356922]
[1770829460006,0.63547318,78.547,78.491,44.59109961]
[1770829461181,12.73139306,78.546,78.491,44.59109961]
[1770829461378,0.63547318,78.545,78.491,44.59109961]
[1770829461582,0.63547318,78.545,78.5,11.20356922]
[1770829461785,0.63547318,78.545,78.491,44.59109961]
[1770829462802,0.63547318,78.545,78.492,48.06]
[1770829463309,0.63547318,78.543,78.493,12.73998955]
[1770829463614,0.63547318,78.543,78.46,11.14431442]
[1770829463818,41.44,78.542,78.47,11.14431442]
[1770829463995,0.63547318,78.541,78.47,11.14431442]
[1770829464492,0.63547318,78.541,78.461,48.06]
[1770829465194,0.63547318,78.541,78.47,11.14431442]
[1770829465395,0.63547318,78.539,78.471,44.60246459]
[1770829465797,0.63547318,78.537,78.471,44.60246459]
[1770829466095,0.63547318,78.537,78.471,12.74356131]
[1770829466292,0.63547318,78.535,78.462,12.74502306]
[1770829466812,0.63547318,78.535,78.44,11.14431442]
[1770829466813,0.63547318,78.527,78.452,48.06]
[1770829467218,0.63547318,78.527,78.451,44.61383538]
[1770829467521,0.63547318,78.525,78.453,12.74648515]
[1770829467818,0.63547318,78.525,78.453,44.61269804]
[1770829468396,0.63547318,78.525,78.453,12.74648515]
[1770829468592,0.63547318,78.519,78.443,12.74811009]
[1770829468792,0.63547318,78.515,78.46,11.14431442]
[1770829468999,0.63547318,78.528,78.49,11.14431442]
[1770829469197,0.63547318,78.528,78.48,11.14431442]
[1770829469512,0.63547318,78.528,78.481,20.62]
[1770829469896,0.63547318,78.548,78.49,11.14431442]
[1770829470097,0.63547318,78.548,78.482,44.59621314]
[1770829470098,0.63547318,78.546,78.482,12.74177518]
[1770829470314,0.63547318,78.546,78.49,11.14431442]
[1770829470517,0.63547318,78.546,78.486,48.04]
[1770829470694,0.63547318,78.546,78.49,11.14431442]
[1770829470898,0.63547318,78.546,78.486,48.04]
[1770829471201,0.63547318,78.546,78.49,11.14431442]